bitfinex/quotes_SOLUSD_20220212
["timestamp","ask_amount","ask_price","bid_price","bid_amount"]
[1644676596043,2.87390296,94.907,94.782,5.271]
[1644676596044,5.271,94.906,94.782,5.271]
[1644676596245,0.25,94.905,94.78,15.13]
[1644676596446,5.271,94.904,94.781,5.271]
[1644676596650,14.90265814,94.904,94.782,41.68705812]
[1644676596844,0.25,94.903,94.782,41.68705812]
[1644676597049,15.13,94.9,94.782,41.68705812]
[1644676597246,5.521,94.899,94.782,41.68705812]
[1644676597646,38.72795281,94.879,94.782,41.68705812]
[1644676597845,23.3808,94.878,94.783,5.272]
[1644676598048,28.6528,94.878,94.782,41.68705812]
[1644676598547,36.8228,94.878,94.771,23.6837]
[1644676598748,15.8231,94.87,94.771,23.6837]
[1644676598948,5.273,94.869,94.771,23.6837]
[1644676599248,5.523,94.869,94.771,23.6837]
[1644676599448,24.6853,94.868,94.771,23.6837]
[1644676599647,24.6853,94.868,94.772,36.4553788]
[1644676599849,5.523,94.867,94.772,36.4553788]
[1644676600651,15.8244,94.86,94.772,36.4553788]
[1644676600848,5.273,94.859,94.772,36.4553788]
[1644676603448,22.5363,94.866,94.772,36.4553788]
[1644676604073,22.5363,94.866,94.78,15.8214]
[1644676608053,5.272,94.865,94.78,15.8214]
[1644676608255,5.272,94.865,94.781,7.89690296]
[1644676608452,5.272,94.865,94.8,15.8171]
[1644676608653,5.272,94.865,94.81,15.13]
[1644676608853,5.272,94.865,94.811,5.272]
[1644676609254,5.272,94.865,94.811,7.89590296]
[1644676609455,5.272,94.865,94.812,2.62390296]
[1644676609754,5.272,94.902,94.813,5.272]
[1644676609954,5.272,94.902,94.81,15.13]
[1644676610156,5.271,94.878,94.802,42.76853017]
[1644676610354,5.271,94.878,94.783,22.655]
[1644676610553,47.3911,94.877,94.79,5.272]
[1644676610756,47.6411,94.877,94.77,67.8593]
[1644676610953,5.272,94.876,94.77,67.8593]
[1644676611154,5.272,94.876,94.773,2.62390296]
[1644676611353,5.272,94.876,94.774,44.0898967]
[1644676611584,5.272,94.876,94.775,5.272]
[1644676611756,5.272,94.876,94.78,15.8215]
[1644676611960,47.6411,94.877,94.781,5.272]
[1644676612256,47.6411,94.877,94.781,7.89590296]
[1644676612455,5.272,94.876,94.781,2.62390296]
[1644676612660,5.272,94.876,94.782,2.62390296]
[1644676612856,0.25,94.875,94.782,2.62390296]
[1644676613057,5.272,94.874,94.782,2.62390296]
[1644676613257,0.25,94.873,94.783,5.272]
[1644676613457,5.272,94.872,94.783,5.272]
[1644676613858,0.25,94.871,94.783,5.272]
[1644676614258,5.272,94.87,94.783,5.272]
[1644676614658,0.25,94.869,94.783,5.272]
[1644676614857,5.272,94.868,94.782,2.62390296]
[1644676615060,5.272,94.876,94.782,2.62390296]
[1644676615261,5.272,94.867,94.782,2.62390296]
[1644676615458,5.272,94.876,94.774,15.84379966]
[1644676615660,5.272,94.876,94.773,5.272]
[1644676615661,5.272,94.866,94.78,15.13]
[1644676615863,13.26390296,94.866,94.752,5.272]
[1644676616060,30.48150296,94.865,94.752,5.272]
[1644676616261,30.73150296,94.865,94.752,5.272]
[1644676616458,2.62390296,94.864,94.752,5.272]
[1644676616659,2.62390296,94.864,94.753,48.44705057]
[1644676616660,44.92704174,94.862,94.753,48.44705057]
[1644676616959,7.89690296,94.861,94.753,48.44705057]
[1644676617259,2.62390296,94.86,94.754,5.273]
[1644676617462,15.8262,94.85,94.754,5.273]
[1644676617659,27.9322,94.849,94.754,5.273]
[1644676617861,28.1822,94.849,94.753,48.44705057]
[1644676619363,22.9082,94.849,94.753,48.44705057]
[1644676621771,36.71749447,94.847,94.754,5.274]
[1644676622372,0.25,94.846,94.754,5.274]
[1644676622573,5.274,94.845,94.753,48.44705057]
[1644676622775,0.25,94.844,94.753,48.44705057]
[1644676622977,5.274,94.843,94.753,48.44705057]
[1644676623275,0.25,94.842,94.753,48.44705057]
[1644676623474,5.274,94.841,94.753,48.44705057]
[1644676623776,0.25,94.84,94.753,48.44705057]
[1644676623974,5.274,94.839,94.754,5.274]
[1644676624175,24.8241,94.844,94.754,5.274]
[1644676626283,0.25,94.843,94.754,5.274]
[1644676627590,5.274,94.842,94.753,48.44705057]
[1644676627790,0.25,94.841,94.753,48.44705057]
[1644676627994,5.274,94.84,94.753,48.44705057]
[1644676628193,0.25,94.839,94.753,48.44705057]
[1644676628392,5.274,94.838,94.753,48.44705057]
[1644676628795,25.1589,94.837,94.753,48.44705057]
[1644676630098,5.274,94.836,94.753,48.44705057]
[1644676631398,5.274,94.836,94.754,5.274]
[1644676631595,5.274,94.836,94.753,48.44705057]
[1644676632796,25.1589,94.837,94.754,5.274]
[1644676633597,24.9089,94.837,94.754,5.274]
[1644676633997,5.274,94.836,94.754,5.274]
[1644676634200,24.9089,94.837,94.754,5.274]
[1644676634398,5.274,94.836,94.754,5.274]
[1644676635400,2.87390296,94.835,94.754,5.274]
[1644676635604,2.87390296,94.835,94.71,52.7593]
[1644676635605,5.274,94.834,94.71,15.13]
[1644676635806,0.25,94.833,94.71,15.13]
[1644676636007,5.275,94.832,94.71,15.13]
[1644676636205,0.25,94.831,94.711,3.10390296]
[1644676636408,15.8298,94.83,94.711,3.10390296]
[1644676636606,15.8298,94.83,94.712,2.62390296]
[1644676636805,5.525,94.829,94.712,2.62390296]
[1644676637005,41.9483456,94.828,94.713,43.09780973]
[1644676637205,5.525,94.827,94.713,43.09780973]
[1644676637406,5.525,94.827,94.714,2.62390296]
[1644676637807,5.525,94.827,94.72,15.8298]
[1644676638213,5.525,94.827,94.721,2.62390296]
[1644676638606,15.8312,94.82,94.721,2.62390296]
[1644676638809,23.5539,94.819,94.721,2.62390296]
[1644676639607,23.5539,94.819,94.73,15.8287]
[1644676639807,23.5539,94.819,94.731,46.44151881]
[1644676640009,5.275,94.818,94.731,49.06542177]
[1644676640213,5.275,94.818,94.732,2.62390296]
[1644676640819,5.275,94.818,94.731,46.44151881]
[1644676640820,5.275,94.818,94.73,30.9587]
[1644676641019,0.25,94.817,94.73,15.13]
[1644676641215,5.275,94.816,94.73,15.13]
[1644676641624,5.275,94.816,94.716,2.62390296]
[1644676641625,0.25,94.815,94.716,2.62390296]
[1644676641820,5.276,94.814,94.716,2.62390296]
[1644676642022,41.66443833,94.813,94.717,42.90107105]
[1644676642218,5.276,94.812,94.717,42.90107105]
[1644676642417,22.7674,94.811,94.717,42.90107105]
[1644676642617,5.276,94.81,94.717,42.90107105]
[1644676642819,0.25,94.809,94.717,42.90107105]
[1644676643022,5.276,94.808,94.717,42.90107105]
[1644676643221,0.25,94.807,94.717,42.90107105]
[1644676643424,5.276,94.806,94.717,42.90107105]
[1644676643619,22.7496,94.805,94.717,42.90107105]
[1644676643822,5.276,94.804,94.717,42.90107105]
[1644676645942,5.276,94.804,94.72,15.8304]
[1644676646143,22.7496,94.805,94.72,15.8304]
[1644676646939,22.7496,94.805,94.717,42.90107105]
[1644676648338,5.276,94.804,94.717,42.90107105]
[1644676648540,22.7496,94.805,94.717,42.90107105]
[1644676649742,0.25,94.804,94.717,42.90107105]
[1644676649947,5.526,94.804,94.71,30.9622]
[1644676651146,15.8346,94.8,94.71,15.13]
[1644676651444,5.526,94.799,94.682,23.4631]
[1644676651645,13.67390296,94.799,94.682,23.4631]
[1644676651843,7.90090296,94.798,94.682,23.4631]
[1644676652044,35.28716993,94.797,94.683,34.97203756]
[1644676652243,5.277,94.796,94.683,34.97203756]
[1644676652746,15.8374,94.79,94.683,34.97203756]
[1644676652950,5.277,94.789,94.683,34.97203756]
[1644676653145,5.527,94.789,94.682,23.4631]
[1644676653350,0.25,94.789,94.682,23.4631]
[1644676653551,0.25,94.789,94.671,24.4249]
[1644676653748,7.90090296,94.788,94.671,24.4249]
[1644676653946,23.4293,94.787,94.671,24.4249]
[1644676654146,5.277,94.786,94.671,24.4249]
[1644676654347,0.25,94.785,94.672,40.39605488]
[1644676654546,5.277,94.784,94.672,40.39605488]
[1644676654747,15.8377,94.78,94.672,40.39605488]
[1644676654946,5.277,94.779,94.672,40.39605488]
[1644676655148,67.18707968,94.778,94.672,40.39605488]
[1644676655348,5.527,94.777,94.671,24.4249]
[1644676655551,8.15090296,94.777,94.67,15.13]
[1644676655848,15.8405,94.77,94.65,15.13]
[1644676656157,15.13,94.76,94.593,4.38394428]
[1644676656358,15.13,94.76,94.59,15.69912739]
[1644676656359,189.07,94.75,94.597,2.97795563]
[1644676656553,189.07,94.73,94.59,0.56912739]
[1644676656750,37.79252747,94.729,94.59,0.56912739]
[1644676656954,189.07,94.7,94.59,0.56912739]
[1644676657151,204.2,94.69,94.59,0.56912739]
[1644676657348,15.8609,94.66,94.59,0.56912739]
[1644676657548,15.13,94.65,94.59,0.56912739]
[1644676657747,60.0,94.648,94.532,173.21642388]
[1644676657948,30.0442,94.647,94.532,173.21642388]
[1644676658151,30.2942,94.647,94.513,16.23880265]
[1644676658350,15.8623,94.64,94.513,16.23880265]
[1644676658553,15.13,94.63,94.514,39.14344748]
[1644676658751,24.0035,94.629,94.513,16.23880265]
[1644676658951,29.2905,94.629,94.493,16.23880265]
[1644676659151,2.62390296,94.628,94.493,16.23880265]
[1644676659348,5.537,94.627,94.491,5.48]
[1644676659749,5.537,94.627,94.492,41.88565049]
[1644676659951,5.537,94.627,94.491,5.48]
[1644676660751,15.8654,94.62,94.491,5.48]
[1644676660950,15.13,94.61,94.492,46.54695759]
[1644676661154,15.13,94.6,94.492,46.54695759]
[1644676661555,23.7535,94.629,94.492,46.54695759]
[1644676661556,5.288,94.599,94.501,0.48]
[1644676661753,15.13,94.62,94.511,0.48]
[1644676662052,15.13,94.62,94.521,0.48]
[1644676662451,15.13,94.62,94.522,2.62390296]
[1644676662753,15.13,94.62,94.521,0.48]
[1644676662951,23.7535,94.629,94.531,0.48]
[1644676663152,15.13,94.64,94.531,0.48]
[1644676663153,15.13,94.64,94.531,48.28767757]
[1644676663355,5.285,94.639,94.531,48.28767757]
[1644676663554,5.285,94.639,94.481,0.48]
[1644676663757,16.05890296,94.639,94.49,15.13]
[1644676663966,2.62390296,94.638,94.481,0.48]
[1644676664259,15.8644,94.63,94.47,15.8711]
[1644676664455,204.2,94.62,94.471,48.16895961]
[1644676664655,189.07,94.6,94.471,48.16895961]
[1644676664856,15.13,94.59,94.471,48.16895961]
[1644676665058,15.13,94.58,94.471,47.66895961]
[1644676665258,15.13,94.58,94.48,15.8701]
[1644676665556,7.91290296,94.579,94.471,47.66895961]
[1644676665759,5.289,94.579,94.471,47.66895961]
[1644676665958,15.13,94.58,94.41,15.13]
[1644676666157,189.07,94.56,94.41,15.13]
[1644676666356,189.07,94.56,94.383,96.17565348]
[1644676666357,15.8806,94.54,94.383,96.17565348]
[1644676666557,189.07,94.51,94.383,96.17565348]
[1644676666764,15.13,94.5,94.384,4.14587]
[1644676666956,0.25,94.509,94.385,44.51818475]
[1644676666957,15.13,94.49,94.385,44.51818475]
[1644676667259,15.13,94.48,94.385,44.51818475]
[1644676667556,5.293,94.479,94.385,44.51818475]
[1644676667760,5.543,94.479,94.384,4.14587]
[1644676668058,0.25,94.479,94.384,4.14587]
[1644676668456,5.293,94.478,94.384,4.14587]
[1644676668657,5.293,94.479,94.385,44.81794097]
[1644676669056,5.293,94.479,94.385,47.44184393]
[1644676669260,22.9724,94.497,94.386,2.62390296]
[1644676669461,15.13,94.49,94.386,2.62390296]
[1644676670058,5.293,94.489,94.386,2.62390296]
[1644676670560,0.25,94.488,94.387,35.1118164]
[1644676670760,5.293,94.487,94.387,35.1118164]
[1644676670961,15.13,94.49,94.391,0.48]
[1644676671159,22.9724,94.497,94.401,0.48]
[1644676671668,22.9724,94.497,94.403,39.40554656]
[1644676672160,22.9724,94.497,94.404,2.62390296]
[1644676672458,22.9724,94.497,94.404,7.91690296]
[1644676672864,5.293,94.509,94.421,0.48]
[1644676673060,15.13,94.54,94.431,0.48]
[1644676673260,15.13,94.54,94.461,0.48]
[1644676673461,28.1061,94.556,94.432,5.291]
[1644676673660,5.291,94.539,94.432,7.91490296]
[1644676673860,15.13,94.55,94.424,5.291]
[1644676674060,5.292,94.538,94.423,46.42937266]
[1644676674260,15.13,94.53,94.423,46.42937266]
[1644676674463,15.13,94.53,94.424,2.62390296]
[1644676675766,15.13,94.55,94.451,0.48]
[1644676675967,22.8141,94.556,94.461,0.48]
[1644676676167,22.8141,94.556,94.452,53.59313524]
[1644676676367,22.8141,94.556,94.461,2.62390296]
[1644676676569,22.8141,94.556,94.462,5.29]
[1644676676770,5.29,94.555,94.461,2.62390296]
[1644676676971,5.29,94.555,94.463,2.62390296]
[1644676677570,5.29,94.555,94.471,0.48]
[1644676677769,5.29,94.593,94.471,0.48]
[1644676677968,5.29,94.579,94.471,0.48]
[1644676678170,15.13,94.58,94.471,0.48]
[1644676678369,15.13,94.58,94.472,7.91290296]
[1644676678569,15.13,94.58,94.473,47.70386007]
[1644676678769,15.13,94.58,94.474,5.289]
[1644676679575,15.13,94.58,94.474,13.139]
[1644676679869,15.13,94.58,94.481,0.48]
[1644676680075,5.289,94.593,94.491,0.48]
[1644676680272,24.7072,94.594,94.501,0.48]
[1644676680471,5.289,94.599,94.501,5.48]
[1644676680678,72.327,94.61,94.502,37.08364403]
[1644676681069,72.327,94.61,94.502,45.27364403]
[1644676681574,72.327,94.61,94.503,5.287]
[1644676681772,5.287,94.609,94.51,15.8643]
[1644676682572,72.327,94.61,94.511,5.287]
[1644676683672,5.25391097,94.609,94.511,5.287]
[1644676683874,72.327,94.61,94.511,5.287]
[1644676684072,2.87390296,94.608,94.502,37.08364403]
[1644676684273,2.89359277,94.6,94.502,37.08364403]
[1644676684471,5.288,94.599,94.502,37.08364403]
[1644676684675,5.288,94.609,94.503,5.288]
[1644676684975,23.5587,94.609,94.503,5.288]
[1644676685777,2.89359277,94.597,94.503,5.288]
[1644676685975,4.99088154,94.608,94.503,5.288]
[1644676685976,2.89359277,94.6,94.503,5.288]
[1644676686177,2.89359277,94.6,94.503,16.888]
[1644676686598,2.89359277,94.601,94.503,16.888]
[1644676686804,4.99088154,94.599,94.511,0.48]
[1644676687003,2.89359277,94.615,94.541,0.48]
[1644676687207,2.89359277,94.627,94.551,0.48]
[1644676687401,4.11852,94.626,94.551,5.48]
[1644676687700,4.11852,94.626,94.552,5.285]
[1644676687903,4.11852,94.626,94.56,15.8559]
[1644676688100,4.11852,94.626,94.561,5.765]
[1644676688301,4.11852,94.626,94.571,0.48]
[1644676688501,4.11852,94.626,94.572,5.285]
[1644676688707,2.89359277,94.654,94.572,5.285]
[1644676688908,2.89359277,94.657,94.572,5.285]
[1644676689100,2.89359277,94.658,94.572,5.285]
[1644676689305,2.89359277,94.659,94.572,5.285]
[1644676689501,2.89359277,94.66,94.572,5.285]
[1644676689703,2.89359277,94.662,94.572,5.285]
[1644676689902,2.89359277,94.662,94.581,42.22673545]
[1644676690104,2.89359277,94.675,94.601,0.48]
[1644676690302,4.9949409,94.683,94.601,7.56]
[1644676690504,9.62438915,94.702,94.61,12.71]
[1644676690505,2.89359277,94.692,94.61,12.71]
[1644676690702,2.89359277,94.698,94.61,12.71]
[1644676690902,2.89359277,94.698,94.611,5.282]
[1644676691304,2.89359277,94.698,94.62,15.8466]
[1644676691503,2.89359277,94.698,94.602,40.62517623]
[1644676691504,2.89359277,94.698,94.602,38.00127327]
[1644676691704,5.282,94.697,94.602,38.00127327]
[1644676691903,2.89359277,94.676,94.602,38.00127327]
[1644676692105,2.89359277,94.675,94.602,38.00127327]
[1644676692305,2.89359277,94.686,94.602,38.00127327]
[1644676692606,1.45153379,94.659,94.602,38.00127327]
[1644676692802,1.45153379,94.66,94.61,15.848]
[1644676693003,1.45153379,94.66,94.611,0.48]
[1644676693202,1.45153379,94.672,94.61,15.848]
[1644676693405,1.45153379,94.665,94.61,15.848]
[1644676693603,1.45153379,94.67,94.61,15.848]
[1644676693802,1.45153379,94.67,94.602,38.00127327]
[1644676694003,1.45153379,94.661,94.602,38.00127327]
[1644676694603,1.45153379,94.664,94.602,38.00127327]
[1644676694807,1.45153379,94.669,94.572,5.283]
[1644676695005,1.45153379,94.656,94.572,5.283]
[1644676695209,1.45153379,94.661,94.572,5.283]
[1644676695405,1.45153379,94.663,94.572,5.283]
[1644676695604,1.45153379,94.652,94.572,4.783]
[1644676695805,6.73553379,94.651,94.573,45.87448049]
[1644676696006,1.45153379,94.65,94.573,45.87448049]
[1644676696204,1.45153379,94.651,94.573,45.87448049]
[1644676696405,1.45153379,94.651,94.572,4.783]
[1644676696604,5.284,94.65,94.572,4.783]
[1644676696804,1.45153379,94.649,94.572,4.783]
[1644676697206,1.45153379,94.65,94.572,4.783]
[1644676697415,1.45153379,94.65,94.573,35.14714049]
[1644676697709,1.45153379,94.648,94.573,35.14714049]
[1644676697906,1.45153379,94.647,94.573,35.14714049]
[1644676698608,1.45153379,94.653,94.573,35.14714049]
[1644676699008,1.45153379,94.655,94.573,35.14714049]
[1644676699608,1.45153379,94.652,94.573,35.14714049]
[1644676699912,8.17759277,94.678,94.571,5.284]
[1644676699913,1.45153379,94.644,94.571,5.284]
[1644676700110,15.8582,94.67,94.571,5.284]
[1644676700111,1.45153379,94.642,94.571,5.284]
[1644676700311,1.45153379,94.641,94.571,5.284]
[1644676700512,1.45153379,94.638,94.571,5.284]
[1644676700713,5.285,94.637,94.55,15.8585]
[1644676700912,1.45153379,94.64,94.551,36.21635267]
[1644676701113,1.45153379,94.64,94.551,5.285]
[1644676701312,1.45153379,94.631,94.551,5.285]
[1644676701519,1.45153379,94.628,94.53,15.862]
[1644676701715,1.45153379,94.618,94.53,15.862]
[1644676701917,1.45153379,94.615,94.53,15.862]
[1644676702114,1.45153379,94.613,94.53,58.1497694]
[1644676702515,6.73853379,94.612,94.511,0.48]
[1644676702711,0.25,94.611,94.51,15.8651]
[1644676702914,5.537,94.611,94.51,15.8651]
[1644676703114,1.45153379,94.604,94.497,2.12390296]
[1644676703315,12.71,94.6,94.481,2.62390296]
[1644676703513,15.8726,94.58,94.478,37.82470432]
[1644676703714,1.45153379,94.578,94.478,37.82470432]
[1644676703914,1.45153379,94.576,94.478,37.82470432]
[1644676704115,1.45153379,94.574,94.478,37.82470432]
[1644676704314,0.25,94.573,94.474,87.83879348]
[1644676704517,12.71,94.57,94.474,87.83879348]
[1644676704718,1.45153379,94.567,94.474,87.83879348]
[1644676704918,1.45153379,94.563,94.41,12.71]
[1644676705119,12.71,94.55,94.412,4.14464]
[1644676705315,1.45153379,94.547,94.413,45.11899339]
[1644676705519,1.45153379,94.541,94.415,4.14451]
[1644676705722,12.96,94.54,94.415,4.14451]
[1644676705916,1.45153379,94.534,94.415,4.14451]
[1644676706118,28.5923,94.53,94.415,4.14451]
[1644676706319,1.45153379,94.527,94.415,4.14451]
[1644676706518,5.292,94.526,94.415,4.14451]
[1644676706718,5.292,94.528,94.415,4.14451]
[1644676706917,0.25,94.525,94.415,4.14451]
[1644676707120,5.292,94.524,94.415,4.14451]
[1644676707317,0.25,94.523,94.415,4.14451]
[1644676707517,15.8846,94.51,94.415,4.14451]
[1644676707723,23.8097,94.529,94.416,2.62390296]
[1644676707919,23.8097,94.529,94.421,0.48]
[1644676708117,23.8097,94.529,94.423,4.14416]
[1644676708318,23.8097,94.529,94.431,0.48]
[1644676708520,23.8097,94.529,94.441,36.69246654]
[1644676708819,23.8097,94.529,94.442,4.14332]
[1644676709219,23.8097,94.529,94.442,6.76722296]
[1644676709418,48.0338,94.549,94.443,2.62390296]
[1644676709718,48.0338,94.549,94.46,15.8747]
[1644676710124,48.0338,94.549,94.461,2.62390296]
[1644676710323,48.0338,94.549,94.444,4.14324]
[1644676710324,5.291,94.547,94.444,4.14324]
[1644676710524,7.91490296,94.547,94.444,4.14324]
[1644676710718,2.87390296,94.546,94.444,4.14324]
[1644676710919,5.291,94.545,94.444,4.14324]
[1644676711120,7.91490296,94.545,94.444,4.14324]
[1644676711429,15.8797,94.54,94.444,4.14324]
[1644676711625,2.87390296,94.544,94.444,4.14324]
[1644676711626,12.71,94.53,94.444,4.14324]
[1644676711926,1.45153379,94.52,94.39,87.83879348]
[1644676712122,1.45153379,94.502,94.39,87.83879348]
[1644676712325,12.71,94.49,94.33,12.71]
[1644676712523,69.1706,94.489,94.33,12.71]
[1644676712724,5.296,94.488,94.33,12.71]
[1644676712925,15.8927,94.47,94.34,15.8944]
[1644676713124,12.71,94.46,94.34,15.8944]
[1644676713325,5.546,94.459,94.317,39.39849065]
[1644676713525,8.16990296,94.459,94.317,39.39849065]
[1644676713926,5.546,94.459,94.317,54.7901483]
[1644676714527,15.8976,94.44,94.318,2.62390296]
[1644676714729,12.71,94.43,94.293,15.39165765]
[1644676715028,5.298,94.429,94.294,4.14983]
[1644676715227,8.17190296,94.429,94.294,4.14983]
[1644676715428,2.62390296,94.428,94.294,4.14983]
[1644676715627,5.298,94.427,94.295,47.66336966]
[1644676715827,5.548,94.427,94.296,4.14974]
[1644676716027,5.298,94.427,94.296,4.14974]
[1644676716530,2.62390296,94.426,94.297,2.62390296]
[1644676716737,5.298,94.429,94.299,4.14961]
[1644676716930,5.298,94.425,94.299,4.14961]
[1644676717129,28.6127,94.41,94.3,2.62390296]
[1644676717428,28.6127,94.41,94.263,15.39165765]
[1644676717429,12.71,94.4,94.302,4.14948]
[1644676717828,12.71,94.4,94.303,48.52342101]
[1644676718033,12.71,94.4,94.304,4.14939]
[1644676718237,5.3,94.399,94.304,4.14939]
[1644676718430,12.71,94.4,94.304,6.77329296]
[1644676718629,12.71,94.4,94.305,2.62390296]
[1644676719035,93.7957,94.409,94.306,44.91859228]
[1644676719433,93.7957,94.409,94.307,2.62390296]
[1644676719637,5.298,94.408,94.308,4.14921]
[1644676719931,93.7957,94.409,94.31,15.9003]
[1644676720131,23.4119,94.409,94.321,0.48]
[1644676720331,23.4119,94.409,94.331,0.48]
[1644676720534,23.4119,94.409,94.311,7.25298296]
[1644676720733,23.4119,94.409,94.311,4.62908]
[1644676720932,23.4119,94.409,94.311,0.48]
[1644676721436,33.7019,94.409,94.31,15.8986]
[1644676721636,12.71,94.4,94.223,1.47814241]
[1644676721834,21.99426938,94.227,94.198,1.47814241]
[1644676722033,31.17426938,94.227,94.151,0.48]
[1644676722235,31.17426938,94.227,94.152,4.15609]
[1644676723739,0.25,94.226,94.152,4.15609]
[1644676723940,31.17426938,94.227,94.152,4.15609]
[1644676724142,31.17426938,94.227,94.152,3.65609]
[1644676724342,5.308,94.226,94.152,3.65609]
[1644676724535,31.17426938,94.227,94.152,3.65609]
[1644676725136,5.558,94.226,94.152,3.65609]
[1644676725540,5.308,94.226,94.152,3.65609]
[1644676725737,5.308,94.226,94.12,15.9316]
[1644676725938,21.99426938,94.227,94.153,39.55555608]
[1644676726940,21.99426938,94.227,94.154,5.308]
[1644676727139,12.71,94.26,94.154,5.308]
[1644676727338,117.5841,94.309,94.155,2.62390296]
[1644676727339,5.306,94.299,94.155,2.62390296]
[1644676727538,7.92990296,94.288,94.156,5.306]
[1644676727739,5.306,94.288,94.153,39.55555608]
[1644676727938,5.306,94.288,94.161,0.48]
[1644676728144,12.71,94.29,94.154,5.306]
[1644676728341,5.306,94.287,94.154,5.306]
[1644676728540,5.306,94.288,94.161,0.48]
[1644676728744,5.306,94.288,94.18,15.9216]
[1644676728940,5.306,94.288,94.181,45.78031536]
[1644676729541,2.62390296,94.287,94.162,5.306]
[1644676729740,5.306,94.286,94.162,5.306]
[1644676730143,2.62390296,94.285,94.17,15.9227]
[1644676730343,5.306,94.288,94.181,0.48]
[1644676730543,51.3502,94.289,94.181,0.48]
[1644676730746,46.0442,94.289,94.181,0.48]
[1644676730942,46.0442,94.289,94.171,36.3948766]
[1644676731147,46.0442,94.289,94.172,5.306]
[1644676731344,2.62390296,94.288,94.17,15.923]
[1644676731546,8.17990296,94.288,94.17,15.923]
[1644676731748,8.17990296,94.288,94.17,13.923]
[1644676731945,5.556,94.288,94.17,13.923]
[1644676732144,5.556,94.288,94.171,47.94182947]
[1644676732346,5.556,94.288,94.172,5.306]
[1644676732747,5.306,94.288,94.172,5.306]
[1644676733246,5.306,94.288,94.19,15.9202]
[1644676733444,5.306,94.288,94.191,35.03594591]
[1644676733646,51.3492,94.289,94.192,5.305]
[1644676737348,2.62390296,94.288,94.151,5.305]
[1644676737550,46.0442,94.289,94.151,0.48]
[1644676737845,46.0442,94.289,94.152,5.306]
[1644676738050,5.306,94.288,94.153,42.04978624]
[1644676738252,5.306,94.288,94.171,0.48]
[1644676738450,5.306,94.288,94.181,0.48]
[1644676738651,46.0442,94.289,94.183,41.66531803]
[1644676738851,5.305,94.287,94.183,41.66531803]
[1644676739051,5.305,94.288,94.184,5.305]
[1644676739254,5.305,94.286,94.184,5.305]
[1644676739554,2.62390296,94.286,94.184,5.305]
[1644676739755,0.25,94.285,94.184,5.305]
[1644676739957,5.305,94.286,94.184,5.305]
[1644676740154,5.305,94.288,94.185,38.53520966]
[1644676740360,1.45153379,94.287,94.185,38.53520966]
[1644676740558,6.75653379,94.287,94.185,38.53520966]
[1644676740760,1.45153379,94.288,94.185,38.53520966]
[1644676740957,1.45153379,94.287,94.185,38.53520966]
[1644676741158,46.0442,94.289,94.19,15.9202]
[1644676741365,46.0442,94.289,94.191,5.305]
[1644676741559,23.4948,94.289,94.187,5.305]
[1644676741759,23.4948,94.289,94.191,0.48]
[1644676742056,23.4948,94.289,94.201,0.48]
[1644676742259,1.45153379,94.302,94.202,5.305]
[1644676742558,1.45153379,94.295,94.203,39.62071216]
[1644676742756,0.95153379,94.295,94.21,15.9168]
[1644676742977,0.95153379,94.295,94.211,5.784]
[1644676743176,0.95153379,94.295,94.211,18.694]
[1644676743379,2.89359277,94.334,94.211,18.694]